bitfinex/quotes_ETHUSD_20250413
["timestamp","ask_amount","ask_price","bid_price","bid_amount"]
[1744578500870,21.28886309,1575.3,1575.0,6.34914]
[1744578501092,6.34894,1575.1,1574.7,6.35021]
[1744578501403,6.34855,1575.2,1574.8,6.34967]
[1744578501604,6.34855,1575.2,1574.9,6.34948]
[1744578501898,27.63680309,1575.3,1574.9,12.69892]
[1744578502101,14.94059309,1575.3,1574.5,1.0055]
[1744578502299,6.34854,1575.2,1574.8,6.34979]
[1744578502470,6.34854,1575.2,1574.8,13.334589]
[1744578503007,6.34854,1575.2,1574.8,6.984859]
[1744578503309,6.34854,1575.2,1574.9,6.34951]
[1744578503478,6.3489,1575.1,1574.8,6.984759]
[1744578503804,6.34854,1575.2,1574.9,6.3495]
[1744578504007,9.406,1575.3,1575.0,6.34896]
[1744578504373,9.406,1575.3,1575.2,6.3484]
[1744578504602,5.53459309,1575.6,1575.5,6.34719]
[1744578504803,9.099,1575.9,1575.6,12.69356]
[1744578504970,9.099,1575.9,1575.7,6.34637]
[1744578505170,9.099,1575.9,1575.6,6.34678]
[1744578505405,15.44478,1575.9,1575.5,7.44441]
[1744578505602,9.099,1575.9,1575.5,1.841741]
[1744578505811,9.099,1575.9,1575.6,6.34662]
[1744578506177,9.099,1575.9,1575.7,6.34635]
[1744578506377,9.099,1575.9,1575.5,1.0973]
[1744578506583,15.44487,1575.9,1575.5,13.7911]
[1744578506906,15.44487,1575.9,1575.6,6.34678]
[1744578507209,9.099,1575.9,1575.5,1.0973]
[1744578507409,15.44489,1575.9,1575.5,7.44436]
[1744578507820,6.34619,1575.8,1575.4,6.34756]
[1744578508310,21.79044,1575.9,1575.5,6.34699]
[1744578508618,6.34612,1575.8,1575.5,6.34697]
[1744578508907,9.099,1575.9,1575.4,6.34759]
[1744578509109,9.099,1575.9,1575.7,6.34618]
[1744578509314,9.099,1575.9,1575.7,12.69237]
[1744578509522,9.099,1575.9,1575.6,6.34673]
[1744578509681,21.79049,1575.9,1575.5,12.6941]
[1744578509882,15.44469,1575.9,1575.5,12.69404]
[1744578510081,9.099,1575.9,1575.6,6.34665]
[1744578510282,15.44464,1575.9,1575.5,6.34701]
[1744578511119,9.099,1575.9,1575.6,6.34657]
[1744578511290,15.44483,1575.9,1575.5,6.34693]
[1744578511616,9.099,1575.9,1575.6,6.34646]
[1744578511819,15.44459,1575.9,1575.6,6.34646]
[1744578512192,9.099,1575.9,1575.6,12.69309]
[1744578512406,1.1084,1576.2,1575.9,6.34542]
[1744578512803,6.34505,1576.1,1575.7,6.34624]
[1744578513121,7.45291,1576.2,1575.6,1.269309]
[1744578513293,5.53459309,1576.3,1576.0,6.34488]
[1744578513616,15.43968,1576.4,1576.1,6.34477]
[1744578513798,21.78344,1576.4,1576.1,6.34477]
[1744578514003,21.78344,1576.4,1576.0,12.68991]
[1744578514215,6.34368,1576.4,1576.0,12.68991]
[1744578514538,1.076,1576.8,1576.1,6.34477]
[1744578514822,1.076,1577.3,1577.0,6.34088]
[1744578514994,0.05,1577.4,1577.2,6.34017]
[1744578515197,0.05,1577.4,1577.2,12.68035]
[1744578515397,0.05,1577.4,1577.2,6.34012]
[1744578515616,0.05,1577.4,1577.3,6.33994]
[1744578516041,0.05,1577.4,1577.3,6.40333051]
[1744578516201,0.05,1577.4,1577.3,7.43283051]
[1744578516406,0.05,1577.4,1577.3,7.36944]
[1744578516785,6.48455176,1577.9,1577.8,6.33793]
[1744578517031,6.48455176,1577.9,1577.8,8.635041]
[1744578517637,11.20784141,1578.2,1578.0,6.33713]
[1744578517926,11.20784141,1578.2,1578.1,16.45723]
[1744578518502,8.89449697,1578.4,1578.3,7.36543]
[1744578520220,0.05,1578.4,1578.3,7.36543]
[1744578520524,0.05,1578.4,1578.3,8.735591]
[1744578520884,0.05,1578.4,1578.3,2.399661]
[1744578521113,0.05,1578.4,1578.3,8.735591]
[1744578521518,0.05,1578.4,1578.0,6.33709]
[1744578521719,0.05,1578.4,1578.0,6.33696]
[1744578521920,0.05,1578.4,1578.1,6.33652]
[1744578522228,0.05,1578.4,1577.9,7.36698]
[1744578522395,0.05,1578.4,1578.1,6.33653]
[1744578522590,0.05,1578.4,1578.1,6.970333]
[1744578523424,6.38561,1578.4,1578.0,6.33694]
[1744578523724,0.05,1578.4,1578.0,6.3369]
[1744578523912,0.05,1578.4,1578.3,6.33593]
[1744578524124,0.05,1578.4,1578.3,7.42877342]
[1744578524422,6.785097,1579.4,1578.9,6.33331]
[1744578524642,6.785097,1579.4,1578.7,15.41809]
[1744578524643,12.66507,1579.2,1578.7,15.41809]
[1744578524949,1.7649707,1579.4,1578.7,9.084]
[1744578524950,6.33191,1579.3,1578.7,9.084]
[1744578525126,6.33346,1579.0,1578.7,9.084]
[1744578525313,6.33327,1579.0,1578.5,6.33494]
[1744578525501,6.33327,1579.0,1578.6,6.3345]
[1744578525701,0.453347,1579.4,1578.8,4.9344175]
[1744578525929,0.453347,1579.4,1578.7,3.8749]
[1744578525930,6.785087,1579.4,1578.9,6.33348]
[1744578526113,6.33216,1579.3,1578.9,6.33348]
[1744578526424,6.33369,1578.9,1578.4,15.99005]
[1744578526628,6.33369,1578.9,1578.5,6.33508]
[1744578526933,6.33437,1578.7,1578.1,9.6549]
[1744578527103,6.33406,1578.8,1578.4,6.33549]
[1744578527306,1.266681,1578.9,1578.5,6.33473]
[1744578527520,6.33329,1579.0,1578.6,6.33453]
[1744578527701,6.33329,1579.0,1578.5,6.335]
[1744578527901,6.33329,1579.0,1578.3,6.3358]
[1744578528127,6.33372,1578.9,1578.5,6.33501]
[1744578528428,6.33437,1578.7,1578.3,6.33586]
[1744578528642,6.33355,1578.9,1578.2,6.33627]
[1744578528844,6.3347,1578.7,1578.3,6.33578]
[1744578529539,6.33459,1578.7,1578.3,6.33578]
[1744578529715,6.33527,1578.5,1578.1,15.11668]
[1744578529914,6.33472,1578.6,1578.0,6.33707]
[1744578530121,0.8549,1578.3,1577.6,7.21137]
[1744578530317,6.33855,1577.7,1577.3,11.38774988]
[1744578530527,6.33855,1577.7,1577.3,10.51504988]
[1744578530730,6.33875,1577.6,1577.3,10.51504988]
[1744578530932,6.33954,1577.4,1577.3,4.17525988]
[1744578531244,0.719345,1577.7,1577.3,4.17525988]
[1744578531406,6.33954,1577.4,1577.3,4.17525988]
[1744578532242,10.19444,1577.4,1577.3,4.17525988]
[1744578532541,6.34094,1577.1,1576.7,6.3422]
[1744578532729,0.8549,1577.4,1576.7,6.34198]
[1744578532905,6.34091,1577.1,1576.6,6.34275]
[1744578533111,6.34133,1577.0,1576.7,0.634275]
[1744578533350,6.34076,1577.1,1576.7,6.976575]
[1744578533519,7.19462,1577.4,1576.7,6.976505]
[1744578533718,0.8549,1577.4,1576.8,6.34195]
[1744578533920,0.8549,1577.4,1576.9,6.34137]
[1744578533921,7.19447,1577.4,1576.9,6.34137]
[1744578534242,7.19447,1577.4,1577.0,6.341]
[1744578534746,6.33891,1577.6,1577.1,6.40379403]
[1744578534941,9.7049,1577.7,1576.9,14.805178]
[1744578534942,6.34,1577.3,1576.9,14.805178]
[1744578535142,6.33919,1577.5,1577.0,6.34091]
[1744578535448,6.33919,1577.5,1577.1,6.34044]
[1744578535643,6.33879,1577.6,1577.1,6.34044]
[1744578535644,0.9249,1577.7,1577.3,6.33994]
[1744578535948,0.9249,1578.0,1577.7,6.33819]
[1744578536954,0.9249,1578.3,1578.0,6.33708]
[1744578537245,9.7059,1578.6,1578.3,6.33591]
[1744578537447,0.9249,1578.6,1578.4,6.33537]
[1744578537622,7.25967,1578.6,1578.2,6.3362]
[1744578538133,12.66834,1578.8,1578.3,6.3356]
[1744578538340,12.66834,1578.8,1578.4,6.33551]
[1744578538537,7.25863,1578.9,1578.5,6.39827737]
[1744578538713,6.33339,1579.0,1578.4,1.267111]
[1744578538919,6.33308,1579.1,1578.6,6.33446]
[1744578539120,6.3332,1579.0,1578.6,12.66904]
[1744578539428,6.33308,1579.1,1578.7,6.33424]
[1744578539751,0.9249,1579.2,1578.9,6.33335]
[1744578539951,6.784927,1579.4,1578.7,6.33432]
[1744578540124,6.33225,1579.3,1578.9,6.3333]
[1744578540319,6.784897,1579.4,1579.0,6.33289]
[1744578540519,6.784897,1579.4,1578.9,6.33352]
[1744578540723,6.33202,1579.3,1578.9,6.33352]
[1744578541056,6.33202,1579.3,1578.8,6.33369]
[1744578541231,6.33294,1579.1,1578.6,6.33455]
[1744578541429,6.33249,1579.2,1578.5,7.19582]
[1744578541649,6.33195,1579.3,1578.9,6.33337]
[1744578541826,0.453347,1579.4,1578.7,6.33424]
[1744578542033,6.33307,1579.1,1578.7,6.33424]
[1744578542250,6.33236,1579.2,1578.5,7.1958]
[1744578542251,6.33359,1578.9,1578.5,7.1958]
[1744578542424,6.33359,1578.9,1578.5,13.53077]
[1744578542621,6.3341,1578.8,1578.4,16.382541]
[1744578542855,6.3341,1578.8,1578.4,21.45073]
[1744578543055,6.3341,1578.8,1578.4,21.45063]
[1744578543252,7.25337,1578.9,1578.3,6.33593]
[1744578543468,7.25228,1579.2,1578.8,12.66738]
[1744578543650,6.33272,1579.1,1578.5,6.33487]
[1744578543963,6.33341,1579.0,1578.6,6.3978988]
[1744578544122,6.3341,1578.8,1578.4,6.33522]
[1744578544471,6.3341,1578.8,1578.5,0.06334102]
[1744578544762,6.33468,1578.7,1578.3,6.33586]
[1744578545263,6.33468,1578.7,1578.1,6.33666]
[1744578545264,6.33541,1578.5,1578.1,6.33666]
[1744578545469,6.33541,1578.5,1578.1,12.67332]
[1744578545766,12.67081,1578.5,1578.1,6.33666]
[1744578547422,6.3354,1578.5,1578.1,6.33653]
[1744578547627,6.3354,1578.5,1578.2,6.3363]
[1744578548454,12.78123309,1579.0,1578.6,6.33446]
[1744578548657,0.9134,1579.0,1578.7,6.33412]
[1744578549354,6.33386,1578.9,1578.5,6.33505]
[1744578549551,6.33504,1578.6,1578.2,6.33616]
[1744578549754,12.67,1578.6,1578.2,6.33616]
[1744578549955,6.33496,1578.6,1578.2,7.056816]
[1744578550133,12.67099,1578.5,1578.1,13.54372]
[1744578550344,6.33479,1578.6,1578.3,6.33591]
[1744578550641,6.33488,1578.6,1578.2,6.33626]
[1744578550828,6.33488,1578.6,1578.2,12.67243]
[1744578551631,18.20126309,1579.0,1578.6,6.33446]
[1744578551960,0.9134,1578.5,1577.3,0.8704]
[1744578552126,12.6786,1577.5,1577.1,6.34074]
[1744578552454,0.06334041,1577.8,1577.4,6.33939]
[1744578552641,7.25114,1577.9,1577.5,6.33885]
[1744578552859,7.25114,1577.9,1577.2,6.34034]
[1744578552860,6.33794,1577.8,1577.3,6.33989]
[1744578553156,6.33892,1577.6,1577.3,6.33986]
[1744578553327,0.06334041,1577.8,1577.2,6.3403]
[1744578553661,0.06334041,1577.8,1576.9,4.17525988]
[1744578553662,6.33834,1577.7,1576.9,4.17525988]
[1744578553858,0.06334041,1577.8,1576.9,4.17525988]
[1744578553859,12.68194,1577.1,1576.9,4.17525988]
[1744578554031,6.34089,1577.1,1576.9,4.17525988]
[1744578554227,0.06334041,1577.3,1577.0,6.34115]
[1744578554572,6.33773,1577.9,1577.3,6.33976]
[1744578554573,6.33835,1577.7,1577.3,6.33976]
[1744578554730,12.74030041,1577.7,1577.3,6.33976]
[1744578554929,12.74030041,1577.7,1577.1,0.634115]
[1744578554930,6.33874,1577.6,1577.1,0.634115]
[1744578555130,6.33874,1577.6,1576.7,6.34231]
[1744578555131,6.341,1577.1,1576.7,6.34231]
[1744578555438,6.34117,1577.0,1576.7,6.34231]
[1744578555627,6.341,1577.1,1576.7,6.34231]
[1744578555833,6.34041,1577.2,1576.6,0.9121]
[1744578556237,6.34279,1576.6,1576.3,5.08735988]
[1744578556433,6.34279,1576.6,1576.3,4.17525988]
[1744578557026,0.06334041,1576.7,1576.5,6.34294]
[1744578557231,5.53459309,1577.4,1576.9,6.34116]
[1744578557538,6.34078,1577.1,1576.7,6.3421]
[1744578557745,6.34078,1577.1,1576.8,0.06341203]
[1744578557944,6.40478041,1577.0,1576.5,12.68603]
[1744578558154,12.74633041,1577.0,1576.5,12.68603]
[1744578558331,1.4683394,1577.0,1576.4,10.2621]
[1744578558532,1.4683394,1577.0,1576.5,6.34309]
[1744578558867,0.98974041,1577.0,1576.7,6.34217]
[1744578559431,7.33093041,1577.0,1576.6,6.3426]
[1744578559970,7.33093041,1577.0,1576.6,6.40595899]
[1744578560395,7.33093041,1577.0,1576.6,12.74851899]
[1744578560673,17.02087462,1577.3,1576.6,1.33827089]
[1744578560830,6.34035,1577.2,1576.8,6.34156]
[1744578561033,16.5447,1577.3,1576.9,6.34139]
[1744578561034,7.1947,1577.3,1576.9,6.34139]
[1744578561234,0.06334041,1577.4,1576.9,0.869]
[1744578561437,7.19336,1577.6,1577.3,6.33979]
[1744578561644,6.33956,1577.4,1577.0,6.34111]
[1744578561849,0.8546,1577.6,1577.0,7.062021]
[1744578562049,13.59600041,1577.6,1577.2,6.34031]
[1744578562243,6.33915,1577.5,1577.2,6.34031]
[1744578562648,6.33936,1577.5,1577.1,6.34052]
[1744578562922,6.34072,1577.2,1576.7,6.34209]
[1744578563075,6.34072,1577.2,1576.8,13.317679]
[1744578563447,12.74463041,1577.2,1576.8,6.975889]
[1744578563652,6.34132,1577.0,1576.7,6.34219]
[1744578563868,0.06334041,1577.3,1576.9,6.34155]
[1744578564194,0.06334041,1577.3,1576.8,6.34189]
[1744578564195,12.68106,1577.2,1576.8,6.34189]
[1744578564800,6.3405,1577.2,1576.8,12.68371]
[1744578564969,0.06334041,1577.1,1576.6,6.34262]
[1744578565153,7.25087,1577.2,1576.8,6.34195]
[1744578565361,6.40329041,1577.3,1576.7,6.34216]
[1744578565570,12.68272,1577.0,1576.6,6.3426]
[1744578565776,6.34136,1577.0,1576.6,12.68518]
[1744578565991,12.74511041,1577.1,1576.7,6.3423]
[1744578566497,0.06334041,1577.2,1576.8,0.06341749]
[1744578566719,6.33793,1577.8,1577.1,0.9247]
[1744578566921,6.33931,1577.5,1577.2,6.34034]
[1744578567213,6.33841,1577.7,1577.3,12.74297257]
[1744578567417,0.06334041,1577.8,1577.3,0.06339257]
[1744578567588,6.33691,1578.1,1577.7,12.67668]
[1744578567787,6.33691,1578.1,1577.4,15.69254]
[1744578567788,0.9104,1578.2,1577.6,0.9247]
[1744578567988,0.9104,1578.2,1577.7,6.3383]
[1744578567989,6.40023041,1578.1,1577.7,6.3383]
[1744578568184,0.9104,1578.2,1578.0,6.33713]
[1744578568387,0.06334041,1578.3,1577.8,0.063366]
[1744578568575,0.06334041,1578.7,1578.5,6.33481]
[1744578568775,6.33333,1579.0,1578.6,6.39804712]
[1744578568973,12.66904,1578.7,1578.3,6.33575]
[1744578569214,6.39691041,1578.9,1578.3,6.33593]
[1744578569472,0.9104,1579.1,1578.4,0.0633416]
[1744578569676,0.06334041,1579.3,1579.0,6.33294]
[1744578569910,7.698097,1579.4,1578.8,6.33391]
[1744578569911,1.42988741,1579.4,1578.8,6.33391]
[1744578570088,0.453347,1579.4,1579.1,6.33267]
[1744578570302,6.785077,1579.4,1579.0,6.33295]
[1744578570621,0.453347,1579.4,1578.9,1.527191]
[1744578570918,0.453347,1579.4,1578.9,7.22727]
[1744578571131,0.453347,1579.4,1578.9,0.8938]
[1744578571313,0.453347,1579.4,1579.2,6.33192]
[1744578571477,0.453347,1579.4,1579.3,6.33191]
[1744578572172,0.453347,1579.4,1579.3,7.2890169]
[1744578572378,0.453347,1579.4,1579.3,8.58780369]
[1744578572693,0.453347,1579.4,1579.3,12.20110605]
[1744578572889,11.61590661,1580.3,1579.8,6.32953]
[1744578573108,5.2245662,1580.3,1580.0,0.8938]
[1744578573294,5.2245662,1580.3,1580.2,6.32831]
[1744578573472,5.2245662,1580.3,1580.2,12.037787]
[1744578573473,6.2e-06,1580.3,1580.2,12.037787]
[1744578573678,11.16654163,1580.9,1580.8,6.32591]
[1744578573877,11.16654163,1580.9,1580.7,7.21996]
[1744578573878,11.16654163,1580.9,1580.7,7.21995]
[1744578574079,11.16654163,1580.9,1580.8,6.32591]
[1744578574550,8.63e-06,1581.0,1580.9,6.87551]
[1744578574851,0.05,1581.4,1581.3,6.32391]
[1744578575732,0.05,1581.4,1581.3,9.38714035]
[1744578575932,0.05,1581.4,1581.3,6.32391]
[1744578576300,0.05,1581.4,1581.3,9.32391]
[1744578576650,0.05,1581.4,1581.3,11.438717]
[1744578576854,1e-05,1581.4,1581.3,11.438717]
[1744578577006,5.27093453,1582.0,1581.9,6.32151]
[1744578577346,5.27093453,1582.0,1581.6,6.32271]
[1744578577551,5.27093453,1582.0,1581.7,6.32229]
[1744578577841,5.27093453,1582.0,1581.5,6.32276]
[1744578578047,5.27093453,1582.0,1581.9,6.32151]
[1744578578256,4.53e-06,1582.0,1581.9,6.32151]
[1744578578555,0.05,1582.4,1581.9,6.32151]
[1744578578556,0.05,1582.4,1582.3,6.31991]
[1744578580354,0.05,1582.4,1582.2,6.32016]
[1744578580553,0.05,1582.4,1582.3,6.38310273]
[1744578580845,0.05,1582.4,1582.3,17.81702927]
[1744578581054,1e-05,1582.4,1582.3,21.36702927]
[1744578581254,7e-06,1582.7,1582.6,9.86871]
[1744578581404,7e-06,1582.7,1582.6,9.9318702]
[1744578581604,7e-06,1582.7,1582.6,9.31871]
[1744578581907,7e-06,1582.7,1582.6,6.31871]
[1744578582331,7e-06,1582.7,1582.6,6.38188091]
[1744578582505,7e-06,1582.7,1582.6,6.31871]
[1744578582827,7e-06,1582.7,1582.5,6.31894]
[1744578583002,7e-06,1582.7,1582.6,6.31871]
[1744578583604,7e-06,1582.7,1582.6,11.19564771]
[1744578583820,7e-06,1582.7,1582.6,12.08944771]
[1744578584060,0.05,1583.4,1583.3,6.31592]
[1744578584216,6.31665,1583.2,1582.6,3.8938]
[1744578584406,6.31665,1583.2,1582.7,6.31815]
[1744578584609,6.948455,1583.1,1582.7,6.31815]
[1744578584835,0.06334041,1583.0,1582.6,6.31863]
[1744578585035,0.631665,1583.1,1582.7,6.3183]
[1744578585238,6.31708,1583.1,1582.7,6.31807]
[1744578585406,6.31672,1583.1,1582.7,6.31807]
[1744578585802,6.31725,1583.0,1582.6,6.31859]
[1744578586027,7.22981,1583.2,1582.4,9.378]
[1744578586353,6.3169,1583.1,1582.6,6.31831]
[1744578586504,1.354671,1583.1,1582.6,6.31831]
[1744578586716,0.06334041,1583.0,1582.0,0.8938]
[1744578587122,6.31836,1582.7,1582.3,6.31977]
[1744578587550,0.9132,1582.7,1582.2,6.3203]
[1744578587751,0.06334041,1582.6,1582.1,6.32055]
[1744578588048,6.31913,1582.5,1582.1,6.32067]
[1744578588269,6.31913,1582.5,1582.1,6.32053]
[1744578588757,0.06334041,1582.5,1581.9,6.3214]
[1744578589060,6.32156,1581.9,1581.5,6.32296]
[1744578589233,6.32198,1581.8,1581.4,6.32322]
[1744578589637,6.32198,1581.8,1581.3,6.32386]
[1744578589638,0.06334041,1581.7,1581.3,12.64756]
[1744578589837,6.38578041,1581.7,1581.3,12.64756]
[1744578590041,0.06334041,1581.9,1581.2,6.32427]
[1744578590237,0.06334041,1581.9,1581.1,15.69965]
[1744578590238,6.32287,1581.6,1581.1,15.69965]
[1744578590431,7.10007,1581.6,1581.1,9.375]
[1744578590642,7.10007,1581.6,1581.2,6.32417]
[1744578590848,7.10007,1581.6,1581.1,15.69956]
[1744578590849,6.32324,1581.5,1581.1,15.69956]
[1744578591051,0.7772,1581.6,1581.3,6.32361]
[1744578591845,0.7772,1581.6,1581.2,6.38753785]
[1744578592047,0.06334041,1581.7,1581.3,6.32391]
[1744578592243,6.32196,1581.8,1581.4,6.32313]
[1744578592547,6.32231,1581.7,1581.1,9.375]
[1744578592751,6.32231,1581.7,1581.3,6.32362]
[1744578592752,12.70822041,1581.7,1581.3,6.32362]
[1744578592976,7.08031,1581.9,1581.4,6.32325]
[1744578593267,6.32241,1581.7,1581.2,6.3241]
[1744578593469,7.14381041,1581.9,1581.4,12.64664]
[1744578593632,0.06334041,1581.8,1581.4,6.32337]
[1744578593963,0.06334041,1581.8,1581.5,6.32294]
[1744578594538,0.7587,1581.9,1581.7,6.32231]
[1744578594737,0.7587,1581.9,1581.6,6.32264]
[1744578594938,0.7587,1581.9,1581.6,6.3225]
[1744578595144,0.7587,1581.9,1581.7,6.32215]
[1744578595339,0.06334041,1582.1,1581.7,6.32226]
[1744578595543,6.38423041,1582.1,1581.7,6.32215]
[1744578595745,0.77708345,1582.1,1581.5,6.32289]
[1744578596055,0.77708345,1582.1,1581.6,6.32245]
[1744578596056,6.3215,1582.0,1581.6,6.32245]
[1744578596266,6.3215,1582.0,1581.7,6.3222]
[1744578596768,0.06334041,1582.0,1581.7,6.3222]
[1744578597068,12.6417,1582.1,1581.7,6.3222]
[1744578597368,6.32124,1582.0,1581.7,6.3222]
[1744578597557,12.6426,1582.0,1581.6,6.32264]
[1744578597758,6.32124,1582.0,1581.6,12.64514]
[1744578598154,0.06334041,1582.1,1581.7,6.32193]
[1744578598360,6.32124,1582.0,1581.6,6.32269]
[1744578598874,0.63845804,1582.0,1581.2,1.56991]
[1744578599081,0.63845804,1582.0,1581.3,0.06321839]
[1744578599082,7.07494,1581.9,1581.3,0.06321839]
[1744578599274,7.07494,1581.9,1581.4,6.32335]
[1744578599275,6.38526041,1581.8,1581.4,6.32335]
[1744578599475,6.38526041,1581.8,1581.3,12.6477]
[1744578599476,6.32257,1581.7,1581.3,12.6477]
[1744578599648,12.64524,1581.7,1581.3,6.32376]
[1744578599848,7.57051623,1581.7,1581.3,6.32376]
[1744578600069,0.06334041,1581.6,1581.3,6.32376]
[1744578600370,6.38610041,1581.6,1581.3,6.32376]
[1744578600735,1.23272933,1581.9,1581.2,6.38748519]
[1744578600736,1.23272933,1581.9,1581.2,6.38751519]
[1744578600941,0.06334041,1581.8,1581.5,6.32284]
[1744578601261,0.06334041,1581.8,1581.1,3.0]
[1744578601444,6.3229,1581.6,1581.2,6.32408]
[1744578601646,6.32259,1581.7,1581.3,6.32368]
[1744578601984,6.32292,1581.6,1581.2,6.32411]
[1744578602145,6.32368,1581.4,1581.0,6.32503]
[1744578602342,0.8093,1581.5,1581.2,6.32431]
[1744578602578,0.8093,1581.5,1581.1,0.063238]
[1744578602579,0.87264041,1581.8,1581.5,6.3228]
[1744578602741,0.87264041,1581.8,1581.5,12.64576]
[1744578602940,0.87264041,1581.8,1581.5,6.3228]
[1744578603176,14.90959309,1582.5,1581.7,6.32231]
[1744578603479,0.32778897,1582.7,1582.6,6.31871]
[1744578604080,0.8093,1582.9,1582.8,6.31791]
[1744578604237,0.05,1583.4,1583.3,6.31592]
[1744578604438,0.05,1583.4,1583.1,0.06316372]
[1744578604690,0.05,1583.4,1582.8,0.47361484]
[1744578604838,0.05,1583.4,1582.8,6.31769]
[1744578604839,6.31615,1583.3,1582.8,6.31769]
[1744578605188,6.952765,1583.3,1582.9,6.31734]
[1744578605526,6.3164,1583.2,1582.8,6.3177]
[1744578605670,0.636615,1583.3,1582.5,3.0]
[1744578605985,6.31639,1583.2,1582.8,12.6354]
[1744578606142,0.05,1583.4,1582.8,6.31767]
[1744578606342,0.05,1583.4,1582.6,0.55]
[1744578606586,0.05,1583.4,1583.1,6.31645]
[1744578606746,0.05,1583.4,1583.2,6.31612]
[1744578607089,0.05,1583.4,1583.2,6.31599]
[1744578607392,0.05,1583.4,1582.9,6.31728]
[1744578607687,3.0,1583.0,1582.4,6.31915]
[1744578607839,6.31791,1582.9,1582.4,6.31915]
[1744578608039,6.31873,1582.6,1582.2,6.32029]
[1744578608291,6.31849,1582.7,1582.0,16.455]
[1744578608472,0.7896,1582.8,1582.1,6.32067]
[1744578608473,6.31897,1582.6,1582.1,6.32067]
[1744578608783,6.950867,1582.6,1582.1,12.64112]
[1744578608993,6.31911,1582.5,1582.1,6.32054]
[1744578609192,6.32012,1582.3,1581.8,6.32156]
[1744578609338,3.631897,1582.6,1581.9,6.32126]
[1744578609539,6.32128,1582.0,1581.6,6.32242]
[1744578609792,6.32184,1581.9,1581.5,6.323]
[1744578609994,6.32192,1581.8,1581.4,6.3232]
[1744578610191,6.32075,1582.1,1581.1,7.08557]
[1744578610192,9.371,1582.0,1581.1,10.08535]
[1744578610392,9.371,1582.0,1581.3,6.32369]
[1744578610543,3.0,1581.9,1581.1,0.7609]
[1744578610744,9.3217,1581.9,1581.4,6.3234]
[1744578610979,6.32229,1581.8,1581.3,6.32362]
[1744578611190,12.64457,1581.8,1581.3,6.32362]
[1744578611493,4.86927,1581.9,1580.9,6.32546]
[1744578611494,6.3237,1581.4,1580.9,6.32546]
[1744578611647,3.0,1581.6,1581.2,6.32395]
[1744578611856,3.0,1581.6,1580.9,6.32531]
[1744578612205,6.32376,1581.4,1581.0,6.32485]
[1744578612408,6.32431,1581.2,1580.4,10.50238988]
[1744578612558,6.32439,1581.2,1580.4,4.17525988]
[1744578612890,9.32432,1581.2,1580.7,6.32626]
[1744578613186,9.32432,1581.2,1580.8,6.32567]
[1744578613356,3.0,1581.3,1580.5,6.74462599]
[1744578613557,6.32493,1581.1,1580.5,6.32707]
[1744578613800,6.32493,1581.1,1580.6,6.3264]
[1744578614563,6.32666,1580.7,1580.1,6.37868]
[1744578614865,0.7896,1580.7,1580.5,6.32694]
[1744578615172,0.7896,1580.7,1580.1,0.05]
[1744578615994,12.65552,1580.4,1580.1,0.05]
[1744578616171,3.0,1580.5,1580.1,0.05]
[1744578616508,6.32818,1580.3,1580.1,0.05]
[1744578616659,6.32812,1580.3,1580.1,0.05]
[1744578617004,10.11791,1580.2,1580.1,0.05]
[1744578617157,11.762513,1580.2,1580.1,0.05]
[1744578617481,10.11791,1580.2,1580.1,0.05]
[1744578617791,7.11791,1580.2,1580.1,0.05]
[1744578618357,0.7896,1580.2,1580.1,0.05]
[1744578618556,6.32656,1580.7,1580.1,0.05]
[1744578618799,0.7896,1580.6,1580.1,0.05]
[1744578618956,7.11649,1580.6,1580.1,0.05]
[1744578619161,1.501249,1580.6,1580.1,0.05]
[1744578619387,6.32787,1580.4,1580.1,0.05]
[1744578619693,4.501249,1580.6,1580.1,0.05]
[1744578619694,0.7896,1580.6,1580.1,0.05]
[1744578619854,6.32713,1580.5,1580.1,0.05]
[1744578620054,7.11633,1580.6,1580.1,6.37851]
[1744578620259,7.11633,1580.6,1580.2,0.637851]
[1744578620458,7.11633,1580.6,1580.2,6.966141]
[1744578620658,0.7896,1580.9,1580.3,0.55]
[1744578620859,0.7896,1580.9,1580.3,6.87768]
[1744578621093,6.3261,1580.8,1580.3,7.1553231]
[1744578621281,6.32632,1580.7,1580.1,0.05]
[1744578621484,0.7896,1580.9,1580.1,0.05]
[1744578621793,6.32626,1580.8,1580.3,6.32774]
[1744578621958,10.11544,1580.9,1580.2,0.55]
[1744578622158,6.32657,1580.7,1580.3,6.3279]
[1744578622491,6.32698,1580.6,1580.1,6.37869]
[1744578622691,6.32776,1580.4,1580.1,0.05]
[1744578623190,6.32752,1580.4,1580.1,0.05]
[1744578624059,6.32831,1580.2,1580.1,0.05]
[1744578624396,6.32791,1580.3,1580.1,0.05]
[1744578624901,6.32831,1580.2,1580.1,0.05]
[1744578625571,9.32831,1580.2,1580.1,0.05]
[1744578625902,10.893932,1580.2,1580.1,0.05]
[1744578626070,9.32831,1580.2,1580.1,0.05]
[1744578629105,0.8141,1580.2,1580.1,0.05]
[1744578629284,9.379,1580.3,1580.1,0.05]
[1744578629484,15.70692,1580.3,1580.1,0.05]
[1744578630086,9.379,1580.3,1580.1,0.05]
[1744578630290,15.70693,1580.3,1580.1,0.05]
[1744578630680,21.24090309,1580.7,1580.1,0.05]
[1744578630896,5.53459309,1580.7,1580.5,12.65385]
[1744578631122,10.1789,1581.1,1580.6,1.265385]
[1744578631416,0.7989,1581.1,1580.6,0.55]
[1744578631615,6.32393,1581.3,1580.9,6.32533]